bitfinex-derivatives/quotes_ETHF0:USTF0_20250927
["timestamp","ask_amount","ask_price","bid_price","bid_amount"]
[1758957344857,1.30222,4020.5,4020.4,2.09641768]
[1758957345048,1.30222,4020.5,4020.4,1.64898768]
[1758957348558,1.17182,4020.5,4020.4,2.09641768]
[1758957349159,1.17182,4020.5,4020.4,1.64898768]
[1758957350062,1.30222,4020.5,4020.4,1.64898768]
[1758957352565,2.42818139,4020.5,4020.4,1.64898768]
[1758957358570,2.42818139,4020.5,4020.4,1.31908768]
[1758957359562,2.42818139,4020.5,4020.4,1.64898768]
[1758957360471,2.42818139,4020.5,4020.4,2.09641768]
[1758957360770,2.42818139,4020.5,4020.4,1.89798768]
[1758957361662,2.42818139,4020.5,4020.4,1.56808768]
[1758957363771,2.42818139,4020.5,4020.4,1.89798768]
[1758957369372,2.42818139,4020.5,4020.4,0.89238768]
[1758957369564,1.19414,4020.3,4020.2,0.00207531]
[1758957369869,0.98893,4019.4,4019.3,2.082334]
[1758957370075,2.81497786,4019.4,4019.3,2.331334]
[1758957370371,2.32019139,4019.4,4019.3,0.9939]
[1758957370574,1.87266139,4019.4,4019.3,0.9939]
[1758957370777,1.87508466,4019.4,4019.3,0.99663615]
[1758957371075,1.87508466,4019.4,4019.3,1.44417615]
[1758957376480,1.87508466,4019.4,4019.3,0.45833615]
[1758957376680,1.87508466,4019.4,4019.3,0.79623615]
[1758957377882,1.87508466,4019.4,4019.3,0.45833615]
[1758957378081,1.87508466,4019.4,4019.3,0.79623615]
[1758957381285,1.87508466,4019.4,4019.3,1.01693615]
[1758957381488,0.00242327,4019.4,4019.3,1.01693615]
[1758957382384,0.31292327,4019.4,4019.3,1.01693615]
[1758957384980,0.53112327,4019.4,4019.3,1.01693615]
[1758957387287,0.53112327,4019.4,4019.3,1.46449615]
[1758957393084,0.73852327,4019.4,4019.3,1.46449615]
[1758957395895,1.18606327,4019.4,4019.3,1.01693615]
[1758957396094,1.18606327,4019.4,4019.3,0.80803615]
[1758957396393,0.73852327,4019.4,4019.3,1.25559615]
[1758957399095,0.73852327,4019.4,4019.3,1.47629615]
[1758957399400,1.2391822,4019.4,4019.3,1.47629615]
[1758957401699,1.6867222,4019.4,4019.3,1.47629615]
[1758957403193,1.6867222,4019.4,4019.3,0.69929615]
[1758957403393,1.6867222,4019.4,4019.3,0.91309615]
[1758957403593,1.6867222,4019.4,4019.3,1.23019615]
[1758957404907,1.2391822,4019.4,4019.3,1.23019615]
[1758957405405,1.2391822,4019.4,4019.3,0.91309615]
[1758957405902,1.2391822,4019.4,4019.3,1.23019615]
[1758957406101,1.6867422,4019.4,4019.3,0.00273615]
[1758957406301,10.5267422,4019.4,4019.3,0.00273615]
[1758957412513,10.5267422,4019.4,4019.3,0.45031615]
[1758957412710,11.93085082,4019.4,4019.3,0.45031615]
[1758957413515,11.93157306,4019.4,4019.3,0.45031615]
[1758957416118,15.13937306,4019.4,4019.3,0.45031615]
[1758957416820,14.69181306,4019.4,4019.3,0.45031615]
[1758957417119,15.13938306,4019.4,4019.3,0.45031615]
[1758957419523,14.69181306,4019.4,4019.3,0.45031615]
[1758957422727,15.13938306,4019.4,4019.3,0.45031615]
[1758957423827,14.69181306,4019.4,4019.3,0.45031615]
[1758957424428,15.13938306,4019.4,4019.3,0.45031615]
[1758957425527,15.13938306,4019.4,4019.3,0.00273615]
[1758957425727,15.13938306,4019.4,4019.3,0.45031615]
[1758957427126,15.13938306,4019.4,4019.3,0.00273615]
[1758957427324,0.431,4018.7,4018.6,0.44765]
[1758957427526,2.15510862,4018.7,4018.6,0.44765]
[1758957427831,2.65648979,4018.7,4018.6,0.44765]
[1758957428233,2.65648979,4018.7,4018.6,0.45014036]
[1758957428734,2.65648979,4018.7,4018.6,0.00249036]
[1758957430237,11.14548979,4018.7,4018.6,0.00249036]
[1758957433430,0.8872,4018.0,4017.9,0.44773]
[1758957433729,2.29130862,4018.0,4017.9,0.44773]
[1758957434335,2.29130862,4018.0,4017.9,0.45030071]
[1758957435228,2.29130862,4018.0,4017.9,0.00257071]
[1758957436634,11.27179866,4018.0,4017.9,0.00257071]
[1758957442530,11.27094186,4018.0,4017.9,0.00257071]
[1758957443340,2.79094186,4018.0,4017.9,0.00257071]
[1758957446136,0.7578,4017.2,4017.1,0.7595]
[1758957446336,2.16190862,4017.2,4017.1,0.7595]
[1758957446629,2.60971862,4017.2,4017.1,0.7595]
[1758957447033,2.60971862,4017.2,4017.1,0.76178115]
[1758957447836,2.60971862,4017.2,4017.1,1.20960115]
[1758957448236,2.60971862,4017.2,4017.1,1.43340115]
[1758957448740,2.16190862,4017.2,4017.1,1.43340115]
[1758957448940,3.98099,4017.4,4017.3,0.4323]
[1758957449240,4.20639,4017.4,4017.3,0.7473]
[1758957449443,4.41339,4017.4,4017.3,0.7473]
[1758957451340,4.41339,4017.4,4017.3,0.4323]
[1758957451731,0.88021,4017.2,4017.1,0.76178115]
[1758957451935,2.60971862,4017.2,4017.1,0.76178115]
[1758957452137,2.60971862,4017.2,4017.1,0.44678115]
[1758957454947,2.60971862,4017.2,4017.1,0.23828115]
[1758957459740,2.60971862,4017.2,4017.1,0.00228115]
[1758957459941,3.1107408,4017.2,4017.1,0.00228115]
[1758957462146,3.3597408,4017.2,4017.1,0.00228115]
[1758957462344,12.4197408,4017.2,4017.1,0.00228115]
[1758957472569,12.14374862,4017.2,4017.1,0.00228115]
[1758957473164,13.27186506,4017.2,4017.1,0.00228115]
[1758957473368,12.14374862,4017.2,4017.1,0.00228115]
[1758957476365,11.89474862,4017.2,4017.1,0.54498115]
[1758957476573,12.14374862,4017.2,4017.1,0.76088115]
[1758957476873,6.96374862,4017.2,4017.1,0.76088115]
[1758957478673,6.96374862,4017.2,4017.1,0.43568115]
[1758957478869,8.79374862,4017.2,4017.1,0.00228115]
[1758957492583,12.00154862,4017.2,4017.1,0.00228115]
[1758957495786,11.75254862,4017.2,4017.1,0.00228115]
[1758957495982,12.00154862,4017.2,4017.1,0.00228115]
[1758957498686,0.9045,4016.5,4016.4,1.337434]
[1758957498888,2.53363862,4016.5,4016.4,1.337434]
[1758957499080,0.7746,4016.4,4016.3,1.562234]
[1758957499284,0.7746,4016.4,4016.3,1.883934]
[1758957499588,0.77783211,4016.4,4016.3,1.88578743]
[1758957499987,0.77783211,4016.4,4016.3,2.09118743]
[1758957501789,0.00323211,4016.4,4016.3,5.75375343]
[1758957502094,1.45931644,4016.9,4016.8,1.19974]
[1758957502297,1.96199114,4016.9,4016.8,1.19974]
[1758957502491,2.18569114,4016.9,4016.8,1.19974]
[1758957502888,2.18863707,4016.9,4016.8,1.19974]
[1758957504899,2.18863707,4016.9,4016.8,0.7519]
[1758957505288,2.40833707,4016.9,4016.8,0.7519]
[1758957506095,0.50562063,4016.9,4016.8,5.7519]
[1758957506299,0.83682063,4016.9,4016.8,5.7519]
[1758957507099,1.06052063,4016.9,4016.8,5.7519]
[1758957508398,0.00294593,4016.9,4016.8,5.7519]
[1758957508801,0.33414593,4016.9,4016.8,5.7519]
[1758957509404,0.55784593,4016.9,4016.8,0.7519]
[1758957512203,0.33414593,4016.9,4016.8,0.7519]
[1758957512403,0.00294593,4016.9,4016.8,0.7519]
[1758957513697,0.00294593,4016.9,4016.8,3.9597]
[1758957517208,0.00294593,4016.9,4016.8,4.2087]
[1758957519106,0.00294593,4016.9,4016.8,4.65656]
[1758957521415,0.00294593,4016.9,4016.8,7.1263808]
[1758957521601,0.00294593,4016.9,4016.8,5.78467644]
[1758957526908,0.00294593,4016.9,4016.8,7.12459176]
[1758957527714,0.00294593,4016.9,4016.8,5.99647532]
[1758957530208,0.00294593,4016.9,4016.8,4.65656]
[1758957532612,0.21044593,4016.9,4016.8,4.65656]
[1758957532817,0.53514593,4016.9,4016.8,4.65656]
[1758957533217,0.00294593,4016.9,4016.8,4.65656]
[1758957533420,0.32764593,4016.9,4016.8,4.65656]
[1758957534215,0.53514593,4016.9,4016.8,4.65656]
[1758957536418,0.00294593,4016.9,4016.8,4.65656]
[1758957542627,0.00294593,4016.9,4016.8,1.44876]
[1758957542825,0.00294593,4016.9,4016.8,4.65656]
[1758957543225,5.93e-06,4016.9,4016.8,4.65656]
[1758957543526,3.4153,4017.9,4017.8,1.18572]
[1758957543725,3.91821732,4017.9,4017.8,1.43472]
[1758957544030,4.45281732,4017.9,4017.8,1.43472]
[1758957544429,4.45548487,4017.9,4017.8,1.43472]
[1758957545231,4.45548487,4017.9,4017.8,1.12782]
[1758957545728,4.45548487,4017.9,4017.8,1.43472]
[1758957546029,1.24768487,4017.9,4017.8,1.43472]
[1758957546426,1.03778487,4017.9,4017.8,1.43472]
[1758957546729,0.00266755,4017.9,4017.8,1.43472]
[1758957549333,0.00266755,4017.9,4017.8,6.04785153]
[1758957549522,0.00266755,4017.9,4017.8,7.38851123]
[1758957550433,0.00266755,4017.9,4017.8,6.04785153]
[1758957551136,0.00266755,4017.9,4017.8,7.38851123]
[1758957551338,0.3211,4018.4,4018.3,0.89726]
[1758957551638,0.3211,4018.4,4018.3,1.46706]
[1758957552331,0.32303257,4018.4,4018.3,1.46706]
[1758957552531,0.32303257,4018.4,4018.3,1.66480424]
[1758957552830,0.00193257,4018.4,4018.3,4.87260424]
[1758957553229,0.31573257,4018.4,4018.3,4.87260424]
[1758957554840,0.00193257,4018.4,4018.3,4.87260424]
[1758957572247,0.00193257,4018.4,4018.3,6.21326394]
[1758957573946,0.3138,4019.1,4019.0,0.44758]
[1758957574244,0.5311,4019.1,4019.0,1.46378]
[1758957575046,0.53414307,4019.1,4019.0,1.46378]
[1758957578643,0.53414307,4019.1,4019.0,1.58798]
[1758957578840,0.31684307,4019.1,4019.0,1.58798]
[1758957579051,0.00304307,4019.1,4019.0,1.58798]
[1758957581548,0.00304307,4019.1,4019.0,2.9286397]
[1758957583839,0.53384307,4019.1,4019.0,2.9286397]
[1758957584145,0.00304307,4019.1,4019.0,2.9286397]
[1758957593454,0.31234307,4019.1,4019.0,2.9286397]
[1758957594654,0.31234307,4019.1,4019.0,4.05494034]
[1758957595745,0.00304307,4019.1,4019.0,4.05494034]
[1758957599252,0.00304307,4019.1,4019.0,2.71428064]
[1758957599452,0.31234307,4019.1,4019.0,2.71428064]
[1758957600552,0.00304307,4019.1,4019.0,2.71428064]
[1758957600851,0.22454307,4019.1,4019.0,2.71428064]
[1758957601047,0.74014307,4019.1,4019.0,2.03468225]
[1758957601552,0.74014307,4019.1,4019.0,1.58709225]
[1758957601746,5.74014307,4019.1,4019.0,0.249]
[1758957602142,6.24202685,4019.1,4019.0,0.249]
[1758957604648,6.2420102,4019.1,4019.0,0.249]
[1758957608657,0.9002,4018.5,4018.4,3.65545]
[1758957608962,0.9002,4018.5,4018.4,3.90445]
[1758957610162,0.9002,4018.5,4018.4,4.10955]
[1758957610365,0.9002,4018.5,4018.4,4.41655]
[1758957612157,0.9002,4018.5,4018.4,4.10955]
[1758957613163,0.9002,4018.5,4018.4,4.63105]
[1758957613757,0.769,4018.5,4018.4,4.63105]
[1758957617868,0.5472,4018.5,4018.4,4.63105]
[1758957621469,0.9061,4018.5,4018.4,4.31425]
[1758957621666,0.9061,4018.5,4018.4,4.63105]
[1758957622365,0.7721,4018.5,4018.4,4.63105]
[1758957632271,0.7721,4018.5,4018.4,5.96914225]
[1758957633677,0.5472,4018.5,4018.4,5.96914225]
[1758957633874,0.7654,4019.0,4018.9,1.1897]
[1758957634180,1.40200658,4019.0,4018.9,1.4387]
[1758957634381,1.40200658,4019.0,4018.9,1.1219]
[1758957635082,2.52830722,4019.0,4018.9,1.1219]
[1758957637385,2.52830722,4019.0,4018.9,0.9172]
[1758957639479,2.52830722,4019.0,4018.9,1.4387]
[1758957639681,2.39430722,4019.0,4018.9,1.4387]
[1758957640379,2.52830722,4019.0,4018.9,0.9911]
[1758957640576,0.8994,4018.5,4018.4,3.87606]
[1758957640880,1.40200658,4018.5,4018.4,4.12506]
[1758957641080,0.8994,4018.5,4018.4,4.12506]
[1758957641286,1.40219836,4018.5,4018.4,4.12506]
[1758957643378,1.40219836,4018.5,4018.4,0.91726]
[1758957646786,1.40219836,4018.5,4018.4,0.69666]
[1758957650191,1.40219836,4018.5,4018.4,0.90546]
[1758957650387,1.40219836,4018.5,4018.4,1.21946]
[1758957656590,2.80691954,4018.5,4018.4,1.21946]
[1758957657091,3.25456954,4018.5,4018.4,1.21946]
[1758957657291,3.25456954,4018.5,4018.4,0.7718]
[1758957661095,3.25456954,4018.5,4018.4,1.21946]
[1758957661698,3.25456954,4018.5,4018.4,0.7718]
[1758957662097,2.80691954,4018.5,4018.4,1.21946]
[1758957662298,3.25456954,4018.5,4018.4,1.21946]
[1758957664899,3.25456954,4018.5,4018.4,0.7718]
[1758957672091,3.25456954,4018.5,4018.4,1.21947]
[1758957672295,3.25456954,4018.5,4018.4,1.42897]
[1758957672901,1.40219836,4018.5,4018.4,1.42897]
[1758957673201,0.50279836,4018.5,4018.4,1.42897]
[1758957673406,0.50279836,4018.5,4018.4,6.42897]
[1758957679108,0.546,4018.9,4018.8,0.44762]
[1758957679312,1.04768771,4018.9,4018.8,1.45352]
[1758957684215,0.50168771,4018.9,4018.8,1.45352]
[1758957686215,0.32524307,4019.1,4019.0,1.2045]
[1758957686417,0.82657491,4019.1,4019.0,1.3397]
[1758957687612,0.50437491,4019.1,4019.0,1.3397]
[1758957688118,0.00304307,4019.1,4019.0,1.3397]
[1758957691120,0.3222,4019.5,4019.4,0.44755]
[1758957691423,0.3222,4019.5,4019.4,1.45345]
[1758957691813,3.2078,4019.6,4019.4,1.45345]
[1758957692016,3.53,4019.6,4019.5,0.7569]
[1758957692212,3.7569346,4019.6,4019.5,0.75973507]
[1758957697324,3.9647346,4019.6,4019.5,0.75973507]
[1758957697824,3.9647346,4019.6,4019.5,1.20727507]
[1758957708137,3.9647346,4019.6,4019.5,0.88357507]
[1758957710133,3.9647346,4019.6,4019.5,0.66847507]
[1758957712138,4.46577922,4019.6,4019.5,0.66847507]
[1758957712343,4.46577922,4019.6,4019.5,1.00837507]
[1758957712637,4.46577922,4019.6,4019.5,1.22167507]
[1758957718737,4.46577922,4019.6,4019.5,0.66847507]
[1758957718944,4.46577922,4019.6,4019.5,0.45037507]
[1758957721645,4.91330922,4019.6,4019.5,0.45037507]
[1758957721846,11.03963354,4019.6,4019.5,0.00283507]
[1758957722038,0.7439,4019.2,4019.1,0.69659]
[1758957722239,2.37126894,4019.2,4019.1,0.249]
[1758957722842,2.37126894,4019.2,4018.8,0.44762]
[1758957722843,0.3145,4018.9,4018.8,0.44762]
[1758957723047,1.87022432,4018.9,4018.8,0.69861846]
[1758957723246,2.37212948,4018.9,4018.8,0.69861846]
[1758957725246,1.87022432,4018.9,4018.8,0.69861846]
[1758957728854,1.87022432,4018.9,4018.8,0.25099846]
[1758957729152,2.37153411,4018.9,4018.8,0.00199846]
[1758957736349,2.81914411,4018.9,4018.8,0.00199846]
[1758957737056,0.7711,4018.1,4018.0,0.67501]
[1758957737258,1.89742432,4018.1,4018.0,0.92401]
[1758957737861,1.89742432,4018.1,4018.0,0.92664308]
[1758957739170,1.89742432,4018.1,4018.0,1.45174308]
[1758957745075,0.7711,4018.1,4018.0,1.45174308]
[1758957745671,1.89742432,4018.1,4018.0,1.45174308]
[1758957748470,0.7711,4018.1,4018.0,1.45174308]
[1758957748672,0.5469,4018.1,4018.0,1.45174308]
[1758957748873,0.5469,4018.1,4018.0,1.58104308]
[1758957760887,0.5469,4018.4,4018.3,1.20008]
[1758957761090,2.17496248,4018.4,4018.3,1.44908]
[1758957761387,2.39916248,4018.4,4018.3,1.44908]
[1758957768385,1.27283816,4018.4,4018.3,1.44908]
[1758957768587,1.04863816,4018.4,4018.3,1.44908]
[1758957768791,1.27023816,4018.4,4018.3,1.44908]
[1758957769888,2.39656248,4018.4,4018.3,1.44908]
[1758957775492,0.65319,4018.2,4018.1,1.33809225]
[1758957775698,0.65319,4018.2,4018.1,0.249]
[1758957775699,1.70186904,4018.2,4018.1,0.249]
[1758957776394,1.25417904,4018.2,4018.1,0.6967]
[1758957776598,1.25417904,4018.2,4018.1,0.9177]
[1758957777293,1.25417904,4018.2,4018.1,1.2549]
[1758957777594,1.25417904,4018.2,4018.1,0.9177]
[1758957783498,1.25417904,4018.2,4018.1,1.4595]
[1758957783800,0.5305,4018.2,4018.1,1.4595]
[1758957784697,0.7521,4018.2,4018.1,1.4595]
[1758957786407,1.25423618,4018.2,4018.1,1.4595]
[1758957786705,1.25423618,4018.2,4018.1,0.9177]
[1758957787009,1.70192618,4018.2,4018.1,0.249]
[1758957788811,1.2035,4018.1,4018.0,0.00263308]
[1758957789014,6.31821116,4018.1,4018.0,0.25163308]
[1758957793514,6.31821116,4018.1,4018.0,0.00263308]
[1758957797015,6.56721116,4018.1,4018.0,0.00263308]
[1758957798821,6.11951116,4018.1,4018.0,0.00263308]
[1758957799713,6.1191549,4018.1,4018.0,0.00263308]
[1758957808134,6.1191549,4018.1,4018.0,3.308e-05]
[1758957808343,0.568,4017.0,4016.6,0.77256]
[1758957808634,2.16477498,4016.8,4016.7,0.66195]
[1758957808836,2.6665549,4016.8,4016.7,0.66195]
[1758957809232,2.16477498,4016.8,4016.7,0.21638372]
[1758957809637,2.16477498,4016.8,4016.7,0.00228372]
[1758957809937,2.66635039,4016.8,4016.7,0.00228372]
[1758957810137,2.16477498,4016.8,4016.7,0.00228372]
[1758957816139,2.41477498,4016.8,4016.7,0.00228372]
[1758957823739,1.01,4016.8,4016.7,0.53978372]
[1758957824542,1.01,4016.8,4016.7,0.21598372]
[1758957825244,1.01,4016.8,4016.7,0.66384372]
[1758957829142,0.76,4016.8,4016.7,0.66384372]
[1758957832548,0.76,4016.8,4016.7,0.45014372]
[1758957833054,0.76,4016.8,4016.7,0.66384372]
[1758957834749,0.76,4016.8,4016.7,0.88344372]
[1758957834954,0.76,4016.8,4016.7,1.20724372]
[1758957836158,1.26398284,4016.8,4016.7,1.20724372]
[1758957838755,2.39204016,4016.8,4016.7,1.20724372]
[1758957844755,1.26398284,4016.8,4016.7,1.20724372]
[1758957844957,2.39204016,4016.8,4016.7,1.20724372]
[1758957849263,2.39204016,4016.8,4016.7,0.66384372]
[1758957849961,2.39204016,4016.8,4016.7,0.45014372]
[1758957857874,1.26398284,4016.8,4016.7,0.66514372]
[1758957858174,1.26398284,4016.8,4016.7,0.45014372]
[1758957863069,1.71182284,4016.8,4016.7,0.45014372]
[1758957863270,1.26398284,4016.8,4016.7,0.45014372]
[1758957867674,1.71182284,4016.8,4016.7,0.45014372]
[1758957868781,1.71182284,4016.8,4016.7,0.00228372]
[1758957871076,1.26398284,4016.8,4016.7,0.00228372]
[1758957874375,1.71182284,4016.8,4016.7,0.45014372]
[1758957878682,1.71182284,4016.8,4016.7,0.00228372]
[1758957881186,4.91962284,4016.8,4016.7,0.00228372]
[1758957884982,5.16962284,4016.8,4016.7,0.00228372]
[1758957886282,4.91962284,4016.8,4016.7,0.00228372]
[1758957886483,5.16962284,4016.8,4016.7,0.00228372]
[1758957887782,4.91962284,4016.8,4016.7,0.00228372]
[1758957888085,5.16962284,4016.8,4016.7,0.00228372]
[1758957893989,14.59962284,4016.8,4016.7,0.00228372]
[1758957900593,16.00579729,4016.8,4016.7,0.00228372]
[1758957902099,0.7509,4016.2,4016.1,0.44792]
[1758957902288,1.25488284,4016.2,4016.1,0.67362]
[1758957902489,1.25488284,4016.2,4016.1,1.23542]
[1758957902994,1.25747407,4016.2,4016.1,1.23858423]
[1758957903492,4.46527407,4016.2,4016.1,1.23858423]
[1758957904396,6.31935852,4016.2,4016.1,0.89778423]
[1758957904901,5.87144852,4016.2,4016.1,0.89778423]
[1758957905899,6.31935852,4016.2,4016.1,0.67678423]
[1758957906204,6.31935852,4016.2,4016.1,0.00316423]
[1758957906697,6.31935852,4016.2,4016.1,0.45108423]
[1758957911503,6.31935852,4016.2,4016.1,0.00316423]
[1758957913306,5.87144852,4016.2,4016.1,0.65828423]
[1758957913609,5.87144852,4016.2,4016.1,0.99108423]
[1758957913808,6.31935852,4016.2,4016.1,0.99108423]
[1758957914301,6.31935852,4016.2,4016.1,0.00316423]
[1758957914807,6.56935852,4016.2,4016.1,0.00316423]
[1758957917811,6.56935852,4016.2,4016.1,0.45108423]
[1758957920409,6.56935852,4016.2,4016.1,0.00316423]
[1758957920908,6.56935852,4016.2,4016.1,0.45108423]
[1758957921514,6.57344553,4016.2,4016.1,0.45108423]
[1758957921811,6.57344553,4016.2,4016.1,0.00316423]
[1758957937729,3.36564553,4016.2,4016.1,0.00316423]
[1758957937935,6.57344553,4016.2,4016.1,0.00316423]
[1758957947739,3.36564553,4016.2,4016.1,0.00316423]
[1758957947944,6.57344553,4016.2,4016.1,0.00316423]
[1758957950739,2.15907445,4015.4,4015.3,0.2126]
[1758957950944,2.6671443,4015.4,4015.3,0.2126]
[1758957951135,2.6671443,4015.4,4015.3,0.98251]
[1758957951341,2.6671443,4015.4,4015.3,1.20771]
[1758957951741,2.6671443,4015.4,4015.3,1.20985411]
[1758957953740,1.04136985,4015.4,4015.3,1.20985411]
[1758957954141,1.26096985,4015.4,4015.3,1.20985411]
[1758957955243,1.04136985,4015.4,4015.3,1.20985411]
[1758957957146,0.71726985,4015.4,4015.3,1.20985411]
[1758957957440,0.50806985,4015.4,4015.3,1.20985411]
[1758957961248,0.83216985,4015.4,4015.3,1.20985411]
[1758957962548,1.96094605,4015.4,4015.3,1.20985411]
[1758957962744,2.17014605,4015.4,4015.3,1.20985411]
[1758957969950,1.6620762,4015.4,4015.3,2.54794636]
[1758957973257,1.8836762,4015.4,4015.3,2.54794636]
[1758957980361,1.6620762,4015.4,4015.3,2.54794636]
[1758957983965,1.8836762,4015.4,4015.3,2.54794636]
[1758957986467,0.85656988,4015.4,4015.3,2.54794636]
[1758957986673,1.08206988,4015.4,4015.3,2.54794636]
[1758957991470,1.36256988,4015.4,4015.3,2.54794636]
[1758957992278,1.08206988,4015.4,4015.3,2.54794636]
[1758957994478,0.75526332,4015.4,4015.3,2.54794636]
[1758957994780,3.9354,4015.8,4015.7,0.98747]
[1758957995078,5.57257035,4015.8,4015.7,1.23647]
[1758958001585,2.36477035,4015.8,4015.7,1.23647]
[1758958001878,3.71619415,4015.8,4015.7,1.44207]
[1758958002081,5.07047035,4015.8,4015.7,1.44207]
[1758958002383,5.57257035,4015.8,4015.7,1.44207]
[1758958006280,5.57257035,4015.8,4015.5,0.1312]
[1758958006281,1.24079,4015.5,4015.4,1.33809225]
[1758958006584,3.12796035,4015.5,4015.3,0.00214411]
[1758958006779,1.22379415,4015.4,4015.3,0.00214411]
[1758958008379,1.22379415,4015.4,4015.3,0.32424411]
[1758958010882,1.22379415,4015.4,4015.3,0.54514411]
[1758958019293,1.67179415,4015.4,4015.3,0.54514411]
[1758958019495,1.67179415,4015.4,4015.3,0.99315411]
[1758958020895,1.67179415,4015.4,4015.3,0.54514411]
[1758958021794,1.67179415,4015.4,4015.3,0.99315411]
[1758958022596,3.07861442,4015.4,4015.3,0.99315411]
[1758958023293,0.50839415,4015.4,4015.3,1.21325411]
[1758958023490,0.50839415,4015.4,4015.3,0.89115411]
[1758958024093,0.50839415,4015.5,4015.3,0.89115411]
[1758958024290,0.50839415,4015.4,4015.3,1.21325411]
[1758958024488,0.2197,4015.5,4015.4,0.7631]
[1758958024689,0.72876262,4015.5,4015.4,0.7631]
[1758958025897,0.94396262,4015.5,4015.4,0.7631]
[1758958026395,1.22446262,4015.5,4015.4,0.7631]
[1758958030503,1.67245262,4015.5,4015.4,0.7631]
[1758958036406,1.1617,4015.4,4015.3,0.00214411]
[1758958036698,1.67076262,4015.4,4015.3,0.00214411]
[1758958038208,1.67076262,4015.4,4015.3,0.33084411]
[1758958040907,1.67076262,4015.4,4015.3,0.00214411]
[1758958041719,1.67076262,4015.4,4015.3,0.33084411]
[1758958042018,1.67076262,4015.4,4015.3,0.00214411]
[1758958042712,1.67076262,4015.4,4015.3,0.33084411]
[1758958044407,1.67076262,4015.4,4015.3,0.00214411]
[1758958044807,1.67076262,4015.4,4015.3,0.33084411]
[1758958047013,4.87856262,4015.4,4015.3,0.33084411]
[1758958048620,4.87856262,4015.4,4015.3,0.55004411]
[1758958048815,6.28538289,4015.4,4015.3,0.55004411]
[1758958051419,6.00488289,4015.4,4015.3,0.76914411]
[1758958052309,6.28538289,4015.4,4015.3,0.76914411]
[1758958052819,5.77632027,4015.4,4015.3,0.76914411]
[1758958053003,5.49582027,4015.4,4015.3,0.76914411]
[1758958053802,5.77632027,4015.4,4015.3,0.76914411]
[1758958055018,6.2862674,4015.4,4015.3,0.76914411]
[1758958055411,6.2862674,4015.4,4015.3,0.54994411]
[1758958055616,6.2862674,4015.4,4015.3,0.33084411]
[1758958056115,5.77632027,4015.4,4015.3,0.00214411]
[1758958056519,6.28628074,4015.4,4015.3,0.00214411]
[1758958056724,5.77632027,4015.4,4015.3,0.00214411]
[1758958056914,5.77632027,4015.4,4015.3,0.33084411]
[1758958057817,6.28627458,4015.4,4015.3,0.33084411]
[1758958058314,6.28627458,4015.4,4015.3,0.00214411]
[1758958059818,6.53627458,4015.4,4015.3,0.00214411]
[1758958060916,6.53627458,4015.4,4015.3,0.33084411]
[1758958066517,6.53627458,4015.4,4015.3,0.00214411]
[1758958067720,6.53627458,4015.4,4015.3,0.33844411]
[1758958070027,6.53627458,4015.4,4015.3,0.00214411]
[1758958072227,6.53740448,4015.4,4015.3,0.00214411]
[1758958076129,6.53740448,4015.4,4015.3,0.33844411]
[1758958078036,6.28740448,4015.4,4015.3,0.33844411]
[1758958078330,6.53740448,4015.4,4015.3,0.33844411]
[1758958081039,3.32960448,4015.4,4015.3,0.33844411]
[1758958081239,6.53740448,4015.4,4015.3,0.33844411]
[1758958081633,6.53740448,4015.4,4015.3,0.00214411]
[1758958081834,1.14389,4014.6,4014.5,0.5507]
[1758958082042,6.26959448,4014.6,4014.5,0.3363]
[1758958082232,4.86277421,4014.6,4014.5,0.3363]
[1758958082539,6.26959448,4014.6,4014.5,0.6836]
[1758958082740,6.26959448,4014.6,4014.5,0.68596702]
[1758958084645,5.9921665,4014.6,4014.5,0.68596702]
[1758958085543,5.9921665,4014.6,4014.5,0.90256702]
[1758958088151,5.9921665,4014.6,4014.5,0.68596702]
[1758958089651,5.9921665,4014.6,4014.5,0.55306702]
[1758958089954,5.9921665,4014.6,4014.5,0.33866702]
[1758958101857,5.9921665,4014.6,4014.5,1.01266702]
[1758958102066,5.7115665,4014.6,4014.5,1.36276702]
[1758958102563,5.2634765,4014.6,4014.5,1.36276702]
[1758958102966,5.7115665,4014.6,4014.5,1.36276702]
[1758958104765,5.2634765,4014.6,4014.5,1.36276702]
[1758958104968,3.71888421,4014.6,4014.5,1.36276702]
[1758958108762,3.93508421,4014.6,4014.5,1.36276702]
[1758958109769,0.72728421,4014.6,4014.5,1.36276702]
[1758958109966,0.94278421,4014.6,4014.5,1.36276702]
[1758958110864,0.94278421,4014.6,4014.5,1.61276702]
[1758958112270,0.72728421,4014.6,4014.5,1.61276702]
[1758958117366,0.51108421,4014.6,4014.5,1.61276702]
[1758958117571,1.12939229,4014.9,4014.8,0.3071]
[1758958117771,1.85663156,4014.9,4014.8,1.0003]
[1758958118670,1.85663156,4014.9,4014.8,1.44837]
[1758958121286,2.07213156,4014.9,4014.8,1.44837]
[1758958121771,2.35273156,4014.9,4014.8,1.44837]
[1758958122967,2.07213156,4014.9,4014.8,1.44837]
[1758958125385,1.56109229,4014.9,4014.8,1.44837]
[1758958125678,2.07207605,4014.9,4014.8,1.44837]
[1758958126282,2.35267605,4014.9,4014.8,1.44837]
[1758958126585,2.35267605,4014.9,4014.8,1.00517]
[1758958126777,2.35267605,4014.9,4014.8,0.69807]
[1758958128582,2.35267605,4014.9,4014.8,1.00747]
[1758958128877,0.2806,4014.8,4014.6,0.3094]
[1758958129075,1.21738376,4014.7,4014.6,0.75749]
[1758958129279,1.21738376,4014.7,4014.6,0.69809]
[1758958129683,1.21738376,4014.7,4014.6,1.00749]
[1758958132584,1.21738376,4014.7,4014.6,0.5594]
[1758958132781,2.34677605,4014.7,4014.6,0.5594]
[1758958134387,2.79485605,4014.7,4014.6,0.5594]
[1758958134677,2.79485605,4014.7,4014.6,0.25]
[1758958135386,1.15449,4014.6,4014.5,0.31176702]
[1758958135584,1.66547376,4014.6,4014.5,0.31176702]
[1758958140286,1.66547376,4014.6,4014.5,0.00236702]
[1758958141180,1.66547376,4014.6,4014.5,0.45046702]
[1758958141481,1.66547376,4014.6,4014.5,0.75986702]
[1758958142374,1.66547376,4014.6,4014.5,0.31176702]
[1758958142583,1.66547376,4014.6,4014.5,0.00236702]
[1758958144586,3.0728937,4014.6,4014.5,0.00236702]
[1758958146187,3.0728937,4014.6,4014.5,0.45046702]
[1758958146487,3.0728937,4014.6,4014.5,0.75986702]
[1758958147890,2.6248037,4014.6,4014.5,0.75986702]
[1758958148191,2.6248037,4014.6,4014.5,0.96946702]
[1758958150698,2.6248037,4014.6,4014.5,1.09346702]
[1758958153700,2.3442037,4014.6,4014.5,1.31266702]
[1758958156703,2.6248037,4014.6,4014.5,1.31266702]
[1758958160005,0.93678376,4014.6,4014.5,1.31266702]
[1758958160200,2.3442037,4014.6,4014.5,1.31266702]